[Event "USA Championship 2022"]
[Site "Saint Louis"]
[Date "2022.10.07"]
[Round "3.2"]
[White "Dominguez Perez, Leinier"]
[Black "Robson, Ray"]
[Result "1/2-1/2"]
[ECO "C67"]
[WhiteElo "2747"]
[BlackElo "2690"]
[Annotator "TA"]
[PlyCount "186"]
[EventDate "2022.09.05"]
[EventType "tourn"]
[EventCountry "USA"]
[SourceTitle "playchess.com"]
[Source "ChessBase"]
[SourceQuality "1"]
[TimeControl "40/5400+30:1800+30"]

{[%evp 16,186,23,-7,0,-20,0,0,0,0,0,0,0,0,0,0,0,0,0,-30,0,0,11,0,6,13,22,18,21,21,20,20,21,21,21,10,43,20,43,19,43,39,43,12,24,21,43,21,21,21,39,39,48,25,25,12,13,0,30,0,48,21,28,7,55,8,8,8,8,8,9,8,8,0,67,67,67,67,67,29,67,29,29,24,104,88,104,104,104,104,104,5,104,104,104,104,104,104,104,104,104,51,51,51,104,104,104,104,104,104,104,104,104,104,104,104,104,104,104,104,104,104,104,104,104,104,104,104,104,104,104,104,104,104,104,104,104,104,104,104,104,104,104,104,104,104,104,104,104,104,104,104,104,104,104,104,104,104,104,104,104,104,104,104,104,104,104,0,104,0,104,0,104]} 1. e4 {[%emt 0:05:43]} e5 {[%emt 0:00:15]} 2. Nf3 {[%emt 0:00:06]} Nc6 {[%emt 0:00:19]} 3. Bb5 {[%emt 0:00:06]} Nf6 {[%emt 0:00:32][%cal Bg8f6,Bf6e4,Be4d6,Bd6f5][%mdl 32]} 4. O-O {[%emt 0:00:06]} Nxe4 {[%emt 0:00:26]} 5. d4 {[%emt 0:00:05]} Nd6 {[%emt 0:00:22]} 6. Bxc6 {[%emt 0:00:06]} dxc6 {[%emt 0:00:18]} 7. dxe5 {[%emt 0:00:05]} Nf5 {[%emt 0:00:20]} 8. Qxd8+ {[%emt 0:00:07]} Kxd8 {[%emt 0:00:07]} 9. h3 {[%emt 0:00:05]} Bd7 {[%emt 0:02:19] C67: Ruy Lopez: Berlin Defence: 4 0-0 Nxe4.} 10. Rd1 {[%emt 0:00:08]} Be7 {[%emt 0:04:14]} 11. g4 {[%emt 0:00:10]} Nh4 {[%emt 0:00:28]} 12. Nxh4 {[%emt 0:00:07]} Bxh4 {[%emt 0:00:09]} 13. Nd2 {[%emt 0:00:05]} Kc8 {[%emt 0:02:25]} 14. Nf3 {[%emt 0:00:07]} Be7 {[%emt 0:00:28]} 15. Bg5 $1 {[%emt 0:00:13][%mdl 4] outshines the older 15.Rd3.} Bc5 {[%emt 0:02:14]} 16. Rd3 {[%emt 0:00:13]} Be6 {[%emt 0:04:52] [#]} 17. Kg2 $146 {[%emt 0:00:11]} ({Predecessor:} 17. Nd4 Bxd4 18. Rxd4 c5 19. Rd3 h6 20. Bh4 g5 21. Bg3 h5 22. f3 b6 23. Kg2 {½-½ (43) Shirov,A (2693)-Grischuk,A (2742) Chess.com INT 2022}) 17... b5 {[%emt 0:11:15]} 18. Be3 {[%emt 0:00:50]} Bb6 {[%emt 0:01:19]} 19. Kg3 {[%emt 0:01:25]} Kb7 {[%emt 0:10:49]} 20. a4 {[%emt 0:00:33]} h6 {[%emt 0:09:57]} 21. Nd4 {[%emt 0:03:15]} Bxd4 {[%emt 0:11:08]} 22. Bxd4 {[%emt 0:20:54]} h5 {[%emt 0:01:11]} 23. a5 {[%emt 0:16:35]} a6 {[%emt 0:00:59]} 24. f3 {[%emt 0:02:49]} Rh7 {[%emt 0:08:52]} 25. Rh1 {[%emt 0:02:21]} Rah8 {[%emt 0:01:52]} 26. Rh2 {[%emt 0:02:29]} Re8 {[%emt 0:02:58]} 27. Rdd2 {[%emt 0:05:30]} Kc8 {[%emt 0:01:48]} 28. b3 {[%emt 0:03:06]} Kb7 {[%emt 0:04:01]} 29. Bc5 {[%emt 0:02:22]} Bd5 {[%emt 0:03:13]} 30. Rde2 {[%emt 0:01:06]} Be6 {[%emt 0:01:45]} 31. Re4 {[%emt 0:07:45]} Bd5 {[%emt 0:00:57]} 32. Re3 {[%emt 0:00:21]} Be6 {[%emt 0:00:29]} 33. Ree2 {[%emt 0:03:34]} Kc8 {[%emt 0:00:37]} 34. Re4 {[%emt 0:07:29]} Bd5 {[%emt 0:00:21]} 35. Re3 {[%emt 0:00:21]} Be6 {[%emt 0:00:19]} 36. Re4 {[%emt 0:00:40]} Bd5 {[%emt 0:00:09]} 37. Ree2 {[%emt 0:00:07]} Be6 {[%emt 0:00:18]} 38. Rd2 {[%emt 0:07:37]} Bd5 {[%emt 0:04:12]} 39. Bd4 {[%emt 0:00:10]} Be6 {[%emt 0:00:48]} (39... g5 $11) 40. f4 {[%emt 0:07:06]} (40. h4 $14) 40... g6 $1 $11 {[%emt 0:01:42]} 41. Rdf2 {[%emt 0:32:25]} Rg8 {[%emt 0:24:49]} 42. Bc5 {[%emt 0:00:00]} Kd7 {[%emt 0:00:36]} 43. Rd2+ {[%emt 0:00:00]} Kc8 {[%emt 0:00:16]} 44. Be7 {[%emt 0:00:00]} hxg4 {[%emt 0:00:44]} (44... Re8 $11 45. Bc5 Reh8) 45. hxg4 $14 {[%emt 0:00:00]} Rgh8 {[%emt 0:00:24]} 46. Rxh7 {[%emt 0:00:00] White is more active.} Rxh7 {[%emt 0:00:03][%mdl 4096] Endgame KRB-KRB} 47. Rd8+ {[%emt 0:00:00]} Kb7 {[%emt 0:00:06]} 48. Bc5 {[%emt 0:00:00]} Rh1 {[%emt 0:01:16]} 49. Rd3 {[%emt 0:00:00]} Rf1 {[%emt 0:02:09]} (49... Kc8 $11) 50. Rf3 $1 $16 {[%emt 0:00:00]} Rxf3+ {[%emt 0:01:30]} 51. Kxf3 {[%emt 0:00:00] KB-KB} Bd5+ {[%emt 0:03:02]} 52. Kg3 {[%emt 0:00:00]} Be4 {[%emt 0:01:43] [#]} 53. b4 {[%emt 0:00:00]} (53. c3 $1 $16) 53... Kc8 {[%emt 0:02:51]} (53... Bxc2 $11 {remains equal.} 54. Kh4 Bb3) 54. c3 {[%emt 0:04:15]} Kd7 {[%emt 0:00:40]} 55. Kh4 {[%emt 0:00:08]} Ke6 {[%emt 0:01:16]} 56. Kg5 {[%emt 0:00:06] Prevents f6+.} Bd3 {[%emt 0:02:10]} 57. Ba7 {[%emt 0:00:09]} Bc2 {[%emt 0:01:43]} 58. Bb8 {[%emt 0:00:06]} (58. Bd4 $16) 58... c5 $14 {[%emt 0:00:34]} 59. Bxc7 {[%emt 0:02:22]} cxb4 {[%emt 0:00:12]} ({Better is} 59... c4 $1 $14) 60. cxb4 $16 {[%emt 0:00:03]} Bd1 {[%emt 0:01:53] [#]} 61. f5+ $1 {[%emt 0:00:31]} gxf5 {[%emt 0:00:23]} 62. gxf5+ {[%emt 0:00:01]} Ke7 {[%emt 0:01:42]} 63. Bd6+ {[%emt 0:00:23]} Kd7 {[%emt 0:00:17]} 64. Kh6 {[%emt 0:01:39][%cal Oe5e6]} Bb3 {[%emt 0:00:26] Prevents e6+.} 65. Kg7 {[%emt 0:00:51] Black must now prevent Kf8.} Ke8 {[%emt 0:00:19]} 66. Bc5 {[%emt 0:01:40]} Bc4 {[%emt 0:00:19]} 67. Be3 {[%emt 0:00:49]} Bb3 {[%emt 0:00:28]} 68. Kf6 {[%emt 0:00:48]} Kd7 {[%emt 0:00:08] Prevents e6+.} 69. Bh6 {[%emt 0:00:11]} Bc4 {[%emt 0:00:27]} 70. Bf8 {[%emt 0:00:48]} Bb3 {[%emt 0:00:20]} 71. Bc5 {[%emt 0:00:47]} Bc4 {[%emt 0:00:19]} 72. Kg5 {[%emt 0:00:07]} Bb3 {[%emt 0:00:41]} 73. Kf4 {[%emt 0:00:05]} Bc4 {[%emt 0:00:31]} 74. Ke3 {[%emt 0:00:10]} Bb3 {[%emt 0:00:34]} 75. Kd4 {[%emt 0:00:17]} Kc6 {[%emt 0:00:29]} 76. Ke4 {[%emt 0:00:37]} Kd7 {[%emt 0:00:26]} 77. Bf2 {[%emt 0:00:07]} Bc4 {[%emt 0:00:25]} 78. Bh4 {[%emt 0:00:47]} Ba2 {[%emt 0:00:35]} 79. Kf4 {[%emt 0:02:05]} Bc4 {[%emt 0:00:29]} 80. Kg5 {[%emt 0:00:18]} Bb3 {[%emt 0:00:24]} 81. Kf6 {[%emt 0:00:58]} Bc4 {[%emt 0:00:14]} 82. Kg7 {[%emt 0:00:26] Hoping for Kf8.} Ke8 {[%emt 0:00:19]} 83. Bg3 {[%emt 0:00:46]} Bb3 {[%emt 0:00:14]} 84. e6 {[%emt 0:00:23]} fxe6 {[%emt 0:00:16]} 85. f6 {[%emt 0:00:05] f7+ would kill now.} e5 {[%emt 0:00:05]} 86. Bxe5 {[%emt 0:00:02]} Bf7 {[%emt 0:00:54]} 87. Bg3 {[%emt 0:00:16]} Bc4 {[%emt 0:00:23]} 88. Kg6 {[%emt 0:00:06]} Bf7+ {[%emt 0:00:20]} 89. Kf5 {[%emt 0:00:07]} Kd7 {[%emt 0:00:14]} 90. Ke5 {[%emt 0:00:06]} Kc6 {[%emt 0:00:22]} 91. Kf5 {[%emt 0:00:06]} Kd7 $1 {[%emt 0:00:05]} 92. Ke5 {[%emt 0:00:03]} Kc6 $1 {[%emt 0:00:05]} 93. Kf5 {[%emt 0:00:02]} Kd7 {Weighted Error Value: White=0.12 (very precise) /Black=0.15 (very precise)} 1/2-1/2

[Event "USA Championship 2022"]
[Site "Saint Louis"]
[Date "2022.10.07"]
[Round "3.3"]
[White "Sevian, Samuel"]
[Black "Aronian, Levon"]
[Result "1/2-1/2"]
[ECO "D37"]
[WhiteElo "2684"]
[BlackElo "2755"]
[Annotator "TA"]
[PlyCount "196"]
[EventDate "2022.09.05"]
[EventType "tourn"]
[EventCountry "USA"]
[SourceTitle "playchess.com"]
[Source "ChessBase"]
[SourceQuality "1"]
[TimeControl "40/5400+30:1800+30"]

{[%evp 15,196,0,4,10,8,9,12,8,11,4,0,8,14,0,0,4,12,9,10,0,0,0,0,0,10,20,14,14,14,14,32,0,0,0,0,0,0,0,0,0,0,2,6,0,52,0,0,0,0,0,17,13,50,5,46,37,38,35,73,75,106,103,102,104,156,166,166,173,172,130,141,112,133,77,79,68,70,61,133,141,188,88,141,0,168,0,124,69,92,101,112,95,109,102,99,87,100,0,108,83,83,68,71,42,45,47,73,0,44,0,76,42,50,49,66,67,72,63,110,100,107,66,66,66,71,71,71,70,70,71,71,14,14,14,14,14,14,8,8,8,8,8,8,0,8,8,8,7,7,7,7,7,7,7,7,7,7,7,8,7,7,7,7,7,7,7,7,7,7,7,7,7,7,7,7,0,0,0,7,0,0,0,7]} 1. c4 {[%emt 0:00:31]} Nf6 {[%emt 0:01:34]} 2. d4 {[%emt 0:00:34]} e6 {[%emt 0:00:07]} 3. Nf3 {[%emt 0:00:31]} d5 {[%emt 0:00:07]} 4. Nc3 {[%emt 0:00:41]} Be7 {[%emt 0:01:01]} 5. Bf4 {[%emt 0:00:16]} O-O {[%emt 0:00:07]} 6. e3 {[%emt 0:00:08]} Nbd7 {[%emt 0:00:16]} 7. c5 {[%emt 0:00:22]} Nh5 {[%emt 0:00:57]} 8. Bd3 {[%emt 0:00:42]} Nxf4 {[%emt 0:00:06]} 9. exf4 {[%emt 0:00:06]} b6 {[%emt 0:00:02]} 10. b4 $1 {[%emt 0:00:25]} a5 {[%emt 0:00:57]} 11. a3 {[%emt 0:00:52]} c6 {[%emt 0:00:10]} 12. O-O {[%emt 0:01:15]} Ba6 {[%emt 0:00:15]} 13. g3 {[%emt 0:12:55]} Bf6 {[%emt 0:09:07]} 14. Qc2 {[%emt 0:16:03]} Bxd3 {[%emt 0:01:51]} 15. Qxd3 {[%emt 0:00:01]} Qc8 {[%emt 0:01:51]} 16. Rfc1 {[%emt 0:04:07]} Qb7 {[%emt 0:02:13]} 17. Rab1 {[%emt 0:03:36]} axb4 {[%emt 0:01:34]} 18. axb4 {[%emt 0:00:18]} Ra3 {[%emt 0:01:50]} 19. Qd2 {[%emt 0:07:11]} Qa8 {[%emt 0:02:48]} 20. Kg2 {[%emt 0:02:50]} h6 {[%emt 0:02:41]} 21. Nd1 {[%emt 0:17:45]} Rb8 {[%emt 0:07:44]} 22. Ne3 {[%emt 0:00:18]} Qa4 {[%emt 0:02:59]} 23. Qd1 {[%emt 0:07:56]} Qxd1 {[%emt 0:06:48]} 24. Rxd1 {[%emt 0:00:49]} Ra4 {[%emt 0:01:26]} 25. b5 {[%emt 0:07:49]} Rc8 {[%emt 0:00:05]} 26. bxc6 {[%emt 0:00:37]} Rxc6 {[%emt 0:00:05]} 27. cxb6 {[%emt 0:00:05]} Rxb6 {[%emt 0:00:07]} 28. Rbc1 {[%emt 0:02:42]} Rb8 {[%emt 0:02:44]} 29. f5 {[%emt 0:01:10]} exf5 {[%emt 0:03:22]} (29... Bg5 $11) 30. Nxd5 {[%emt 0:00:49]} ({White should play} 30. Nxf5 $14 Nf8 31. Ne5) 30... Ra5 $11 {[%emt 0:02:19]} 31. Ne3 {[%emt 0:02:50]} Bg5 {[%emt 0:06:14]} 32. Nc4 {[%emt 0:02:52]} Rd5 {[%emt 0:01:26]} 33. Ra1 {[%emt 0:01:53]} Rc8 {[%emt 0:07:35]} 34. h4 {[%emt 0:00:57]} Bf6 {[%emt 0:07:57]} 35. Ne3 {[%emt 0:00:35]} Rb5 {[%emt 0:00:06]} 36. Ra7 {[%emt 0:00:33]} Nf8 {[%emt 0:04:15]} 37. d5 {[%emt 0:02:22]} f4 {[%emt 0:01:05]} 38. gxf4 {[%emt 0:00:45]} Ng6 {[%emt 0:00:25]} 39. Ra4 $1 {[%emt 0:01:40]} Rcb8 {[%emt 0:09:44]} (39... h5 $142) 40. h5 $16 {[%emt 0:01:39]} Nh4+ {[%emt 0:00:05]} 41. Nxh4 {[%emt 0:07:22]} Bxh4 {[%emt 0:01:02]} 42. Nf5 {[%emt 0:06:42]} Bf6 {[%emt 0:00:55]} 43. Ra3 {[%emt 0:02:30]} Rd8 {[%emt 0:04:36]} 44. Ne3 {[%emt 0:00:57]} (44. Ra6 $142) 44... Be7 $16 {[%emt 0:01:35]} 45. Rad3 {[%emt 0:00:53]} Bd6 {[%emt 0:06:40]} 46. Kf3 {[%emt 0:00:59]} Kh7 {[%emt 0:01:06]} (46... g6 $14) 47. Rc1 $16 {[%emt 0:01:56]} Bc5 {[%emt 0:01:14] [#]} (47... Rb4 $16 {was worth a try.}) 48. Ng4 {[%emt 0:00:55]} (48. d6 $1 $18) 48... Bd6 {[%emt 0:02:26]} (48... Bf8 $142) 49. Ne3 {[%emt 0:03:14]} Bc5 $1 {[%emt 0:00:10]} 50. Ng4 {[%emt 0:00:47]} Bd6 $1 {[%emt 0:00:05]} 51. Rcd1 {[%emt 0:00:24]} (51. Rc6 $16) 51... Re8 {[%emt 0:04:47]} 52. Rd4 {[%emt 0:02:57]} Bc5 {[%emt 0:03:37]} 53. Rc4 {[%emt 0:01:28]} Rb3+ {[%emt 0:04:29] [#]} 54. Kg2 $1 {[%emt 0:00:03]} Bd6 {[%emt 0:00:19]} 55. Ne3 {[%emt 0:02:51]} Rd8 {[%emt 0:00:56]} 56. Ng4 {[%emt 0:01:53]} Re8 $1 {[%emt 0:01:10]} 57. Ne5 {[%emt 0:01:14]} Rb7 {[%emt 0:03:05]} 58. Nf3 {[%emt 0:01:26]} Rb5 {[%emt 0:02:15]} 59. Rd2 {[%emt 0:00:26]} Rd8 {[%emt 0:01:22]} 60. Rcd4 {[%emt 0:00:59]} Re8 {[%emt 0:01:03]} 61. Rc4 {[%emt 0:00:23]} Rd8 $1 {[%emt 0:00:13]} 62. Rcd4 {[%emt 0:00:03]} Re8 {[%emt 0:00:05]} 63. Nh4 {[%emt 0:00:40]} Rd8 {[%emt 0:00:56]} 64. Nf5 {[%emt 0:00:30]} Bc5 {[%emt 0:01:02]} 65. R4d3 $1 {[%emt 0:00:16]} Bb4 {[%emt 0:07:18]} 66. Rd1 {[%emt 0:00:16]} Bc5 {[%emt 0:01:15]} (66... g6 $14) 67. Kf3 {[%emt 0:01:16]} Rb2 {[%emt 0:00:28]} 68. R1d2 {[%emt 0:00:11]} Rxd2 {[%emt 0:01:05]} 69. Rxd2 {[%emt 0:00:01]} g6 {[%emt 0:00:07]} 70. hxg6+ {[%emt 0:01:04]} Kxg6 {[%emt 0:00:01]} 71. Ne3 {[%emt 0:00:09]} f5 {[%emt 0:00:58]} 72. Nc4 {[%emt 0:01:04]} Kf6 {[%emt 0:00:11]} 73. Ra2 {[%emt 0:00:50]} ({Better is} 73. Kg3 $16) 73... Rxd5 $11 {[%emt 0:00:55]} 74. Ra6+ {[%emt 0:00:03]} Ke7 {[%emt 0:00:29]} 75. Rxh6 {[%emt 0:00:55]} Rd3+ {[%emt 0:00:05]} 76. Kg2 {[%emt 0:00:31]} Rc3 {[%emt 0:00:53]} 77. Ne5 {[%emt 0:00:36]} Bd6 {[%emt 0:00:48]} 78. Ng6+ {[%emt 0:00:25]} Kf7 {[%emt 0:00:19]} 79. Ne5+ {[%emt 0:00:04]} Ke7 {[%emt 0:00:05]} 80. Rh4 {[%emt 0:01:00]} Ke6 {[%emt 0:00:37]} 81. Nf3 {[%emt 0:00:14]} Rc4 {[%emt 0:00:28]} 82. Ng5+ {[%emt 0:00:08]} Kd5 {[%emt 0:00:10]} 83. Nh3 {[%emt 0:00:16]} Rb4 {[%emt 0:01:03]} 84. Rh5 {[%emt 0:00:19]} Ke6 {[%emt 0:00:12]} 85. Rh6+ {[%emt 0:00:21]} Ke7 {[%emt 0:00:06]} 86. Kg3 {[%emt 0:00:04]} Ra4 {[%emt 0:00:28]} 87. Rh8 {[%emt 0:00:22]} Kf6 {[%emt 0:00:19]} 88. Rc8 {[%emt 0:00:23]} Rb4 {[%emt 0:00:22]} 89. Rc6 {[%emt 0:00:14]} Ke7 {[%emt 0:00:05]} 90. Ra6 {[%emt 0:00:26]} Rc4 {[%emt 0:00:24]} 91. Ra5 {[%emt 0:00:09]} Kf6 {[%emt 0:00:24]} 92. Rd5 {[%emt 0:00:11]} Ke6 {[%emt 0:00:26]} 93. Rd3 {[%emt 0:00:03]} Ke7 {[%emt 0:00:24]} 94. Rf3 {[%emt 0:00:11]} Kf6 {[%emt 0:00:23]} 95. Ng1 {[%emt 0:00:25]} Re4 {[%emt 0:00:05]} 96. Nh3 {[%emt 0:00:08]} Rc4 {[%emt 0:00:04]} 97. Ng1 {[%emt 0:00:05]} Re4 {[%emt 0:00:04]} 98. Nh3 {[%emt 0:00:03]} Rc4 {[%emt 0:00:21]} 1/2-1/2

[Event "USA Championship 2022"]
[Site "Saint Louis"]
[Date "2022.10.07"]
[Round "3.4"]
[White "Xiong, Jeffery"]
[Black "So, Wesley"]
[Result "1/2-1/2"]
[ECO "D27"]
[WhiteElo "2690"]
[BlackElo "2774"]
[Annotator "TA"]
[PlyCount "78"]
[EventDate "2022.09.05"]
[EventType "tourn"]
[EventCountry "USA"]
[SourceTitle "playchess.com"]
[Source "ChessBase"]
[SourceQuality "1"]
[TimeControl "40/5400+30:1800+30"]

{[%evp 16,78,20,27,32,7,18,8,14,8,22,12,14,0,0,0,0,11,10,12,13,10,10,11,11,11,11,11,11,15,23,21,36,19,33,27,34,30,26,23,38,38,38,38,39,39,39,26,33,17,22,21,32,15,16,16,32,32,32,0,32,0,35,0,29]} 1. d4 {[%emt 0:00:41]} d5 {[%emt 0:00:30]} 2. c4 {[%emt 0:00:18]} dxc4 {[%emt 0:00:04]} 3. Nf3 {[%emt 0:00:56]} a6 {[%emt 0:00:44]} 4. e3 {[%emt 0:01:02]} Nf6 {[%emt 0:00:08]} 5. Bxc4 {[%emt 0:00:16]} e6 {[%emt 0:00:07]} 6. O-O {[%emt 0:02:28]} c5 {[%emt 0:00:09]} 7. b3 {[%emt 0:04:00]} cxd4 {[%emt 0:01:32]} 8. Nxd4 {[%emt 0:00:09]} Be7 {[%emt 0:00:06]} 9. Bb2 {[%emt 0:00:32]} O-O {[%emt 0:00:06] D27: Queen's Gambit Accepted: Classical main line: 7 e4!? and 7 a4.} 10. Nd2 {[%emt 0:04:05]} b5 {[%emt 0:00:29]} 11. Be2 {[%emt 0:00:04]} Bb7 {[%emt 0:00:04]} 12. Rc1 {[%emt 0:02:51]} Qd7 {[%emt 0:00:07]} 13. a4 {[%emt 0:04:47][%cal Ra4b5]} (13. N2f3 Rd8 14. Ne5 Qd6 15. Bf3 Nd5 16. Nxf7 Kxf7 17. Bg4 Nf6 18. Bxe6+ Kf8 19. Bh3 Kf7 20. Be6+ Kf8 21. Bh3 Kf7 22. Be6+ {½-½ (22) Xiong,J (2687)-So,W (2772) Chess.com INT 2021}) 13... Nc6 {[%emt 0:03:14] [#]} 14. axb5 $146 {[%emt 0:05:23]} (14. N2f3 {is more complex.} Nxd4 15. Bxd4 Rfc8 16. Rxc8+ Rxc8 17. Bxf6 Qxd1 18. Rxd1 Bxf6 19. axb5 axb5 20. Bxb5 Rc3 21. Bc4) ({Predecessor:} 14. N2f3 Nxd4 15. Qxd4 bxa4 16. Qxd7 Nxd7 17. Rc7 Bc8 18. bxa4 Bd8 19. Rc2 Bb7 20. Rd1 {1-0 (49) Assaubayeva,B (2375)-Shome,S (2298) Budapest 2019}) 14... Nxd4 {[%emt 0:00:32]} 15. Bxd4 {[%emt 0:00:04] And now b6 would win.} axb5 {[%emt 0:00:05]} 16. Nf3 {[%emt 0:01:07]} Rfc8 {[%emt 0:10:44]} (16... Rfd8 {is interesting.} 17. Bxf6 Bxf6 18. Qxd7 Rxd7 19. Bxb5 Rdd8) 17. Bxf6 {[%emt 0:07:25]} (17. Rxc8+ {seems wilder.} Rxc8 18. Bxf6 Qxd1 19. Rxd1 gxf6 20. Bxb5 Bd5 21. Nd4) 17... Qxd1 {[%emt 0:00:49]} 18. Rxc8+ {[%emt 0:00:21]} Rxc8 {[%emt 0:01:04]} 19. Rxd1 {[%emt 0:00:04]} Bxf6 {[%emt 0:01:58]} 20. Bxb5 {[%emt 0:00:07]} Bxf3 {[%emt 0:00:57]} 21. gxf3 $11 {[%emt 0:00:04][%mdl 4096] Endgame KRB-KRB} Rc2 {[%emt 0:00:17]} 22. Bd3 {[%emt 0:12:32]} Ra2 {[%emt 0:07:28]} 23. Rc1 {[%emt 0:05:51] [#] Rc8+ would kill now.} Ra1 {[%emt 0:02:20]} 24. Bb1 {[%emt 0:00:32] White threatens Rc8+ and mate.} Kf8 {[%emt 0:00:11]} 25. Kg2 {[%emt 0:01:19]} Ke7 {[%emt 0:00:19]} 26. b4 {[%emt 0:01:09][%cal Bb3b4,Bb4b5][%mdl 32]} Bb2 {[%emt 0:00:48]} 27. Rd1 {[%emt 0:02:38]} Bc3 {[%emt 0:01:30]} 28. b5 {[%emt 0:00:03]} Ba5 {[%emt 0:00:06]} 29. f4 {[%emt 0:02:12]} g6 {[%emt 0:03:38]} 30. Kf3 {[%emt 0:00:35]} h6 {[%emt 0:00:17]} 31. Ke2 {[%emt 0:08:23]} g5 {[%emt 0:01:27]} 32. fxg5 {[%emt 0:00:30]} hxg5 {[%emt 0:00:03]} 33. h3 {[%emt 0:00:19]} Kf6 {[%emt 0:02:57]} 34. Rc1 {[%emt 0:00:48]} Ke7 {[%emt 0:00:59]} 35. Rf1 {[%emt 0:08:54]} Kf6 {[%emt 0:03:42]} 36. Kf3 {[%emt 0:02:34]} Bb6 {[%emt 0:02:07]} 37. Ke2 {[%emt 0:01:01]} Ba5 {[%emt 0:00:57]} 38. Kf3 {[%emt 0:01:56]} Bb6 {[%emt 0:00:20]} 39. Ke2 {[%emt 0:00:07]} Ba5 {[%emt 0:00:28] Weighted Error Value: White=0.08 (flawless) /Black=0.03 (flawless)} 1/2-1/2

[Event "USA Championship 2022"]
[Site "Saint Louis"]
[Date "2022.10.07"]
[Round "3.5"]
[White "Liang, Awonder"]
[Black "Lenderman, Aleksandr"]
[Result "1-0"]
[ECO "D23"]
[WhiteElo "2608"]
[BlackElo "2535"]
[Annotator "TA"]
[PlyCount "79"]
[EventDate "2022.09.05"]
[EventType "tourn"]
[EventCountry "USA"]
[SourceTitle "playchess.com"]
[Source "ChessBase"]
[SourceQuality "1"]
[TimeControl "40/5400+30:1800+30"]

{[%evp 18,79,23,-14,18,19,13,19,9,0,22,7,4,0,7,0,0,0,7,13,42,28,34,29,45,39,40,31,48,47,60,51,49,53,80,45,56,14,100,110,133,139,131,137,172,181,253,239,254,233,249,230,287,298,545,540,539,548,533,527,641,616,572,556]} 1. d4 {[%emt 0:00:01]} d5 {[%emt 0:00:10]} 2. c4 {[%emt 0:00:02]} c6 {[%emt 0:00:07]} 3. Nf3 {[%emt 0:00:19]} Nf6 {[%emt 0:00:07]} 4. Qc2 {[%emt 0:00:19]} dxc4 {[%emt 0:00:23]} 5. Qxc4 {[%emt 0:00:19]} Bf5 {[%emt 0:00:10]} 6. g3 {[%emt 0:02:08]} e6 {[%emt 0:00:06]} 7. Bg2 {[%emt 0:00:15]} Be7 {[%emt 0:00:17]} 8. O-O {[%emt 0:06:37]} O-O {[%emt 0:00:06]} 9. Nc3 {[%emt 0:01:59]} Nbd7 {[%emt 0:03:26]} 10. a4 {[%emt 0:04:01]} Ne4 {[%emt 0:13:25] D23: Queen's Gambit Accepted: 3 Nf3 Nf6 sidelines.} 11. a5 {[%emt 0:02:32]} Nxc3 {[%emt 0:00:28]} 12. bxc3 {[%emt 0:01:30]} Be4 $1 {[%emt 0:00:11] [#] The position is equal.} 13. Qb3 $5 $146 {[%emt 0:08:01][%mdl 8] New and interesting.} (13. Ne1 {with more complications.} b5 14. axb6 Bd5 15. Qd3) ({Predecessor:} 13. Nd2 Bxg2 14. Kxg2 Qc7 15. Nf3 b5 16. axb6 axb6 17. Rb1 Qb7 18. e4 Ra5 19. Re1 {0-1 (54) Dreev,A (2670)-Yagupov,I (2405) Tula 2019}) 13... c5 {[%emt 0:03:33]} 14. Nd2 {[%emt 0:17:16]} Bxg2 {[%emt 0:00:17]} 15. Kxg2 {[%emt 0:01:28]} Qc7 {[%emt 0:07:25]} 16. Nf3 {[%emt 0:01:52]} b6 {[%emt 0:05:31]} 17. Qa4 {[%emt 0:02:46]} cxd4 {[%emt 0:07:44]} 18. cxd4 {[%emt 0:01:40]} bxa5 {[%emt 0:01:01]} 19. Bf4 {[%emt 0:01:02]} Qb7 {[%emt 0:00:32] [#] ...g5 is the strong threat.} 20. Rfc1 {[%emt 0:06:55] And now Rc7 would win.} e5 {[%emt 0:08:54]} 21. dxe5 {[%emt 0:04:11]} Bb4 {[%emt 0:08:04]} 22. e6 {[%emt 0:09:00]} Nc5 {[%emt 0:01:41]} 23. exf7+ {[%emt 0:00:02]} Qxf7 {[%emt 0:05:18]} 24. Qa2 {[%emt 0:00:03]} Qxa2 {[%emt 0:02:36]} 25. Rxa2 {[%emt 0:00:02]} Rfe8 {[%emt 0:02:25]} 26. Be3 {[%emt 0:00:33]} (26. Rc4 {feels hotter.} Re4 27. Nd4 Ne6 28. Be3) 26... Ne4 {[%emt 0:02:25]} 27. Rc6 {[%emt 0:08:00]} a6 {[%emt 0:02:57]} (27... Nc3 $11 {keeps the balance.} 28. Rd2 Nb5) 28. Bd4 $16 {[%emt 0:09:06]} Nd6 {[%emt 0:06:34]} 29. Rc7 {[%emt 0:01:39] White is more active.} Nf5 {[%emt 0:01:42]} 30. Bb6 {[%emt 0:00:11]} Re7 {[%emt 0:04:40]} 31. Rcc2 {[%emt 0:01:38]} ({Don't play} 31. Bxa5 Bxa5 32. Rxe7 Nxe7 $16) 31... a4 {[%emt 0:08:59]} (31... Ree8 $142 32. Bxa5 Bf8) 32. Rxa4 $18 {[%emt 0:00:20]} a5 {[%emt 0:00:05] [#]} 33. Rca2 $1 {[%emt 0:00:38] Hoping for Rxb4.} Bc3 {[%emt 0:01:42]} 34. R2a3 {[%emt 0:06:51]} ({Worse is} 34. Bxa5 Rea7 $11) 34... Bb2 {[%emt 0:03:51]} 35. Rxa5 {[%emt 0:00:54]} Rf8 {[%emt 0:00:22]} (35... Rxa5 36. Rxa5 g6 37. Ra8+ Kg7) 36. Rb3 {[%emt 0:01:01] White is clearly winning.} Rxe2 {[%emt 0:00:25]} 37. Ra2 {[%emt 0:00:12]} Rb8 {[%emt 0:00:08]} 38. Kf1 {[%emt 0:01:52]} Nd4 {[%emt 0:00:34]} 39. Bxd4 {[%emt 0:00:23]} ({Not} 39. Raxb2 Rxb2 40. Rxb2 Nxf3 $16) 39... Rxb3 {[%emt 0:00:05]} 40. Kxe2 {[%emt 0:00:07] Weighted Error Value: White=0.06 (flawless) /Black=0.33} 1-0